[Event "Titled Tuesday Blitz December 13 Early 2022"]
[White "Haddouche, Mohamed"]
[Black "Thorhallsson, Simon"]
[WhiteFideId "7900660"]
[BlackFideId "2310090"]
[WhiteElo "2443"]
[BlackElo "2108"]
[Result "1-0"]
[Round "02"]
[TimeControl "180+1"]
[Date "2022.12.14"]
[WhiteClock "0:01:02"]
[BlackClock "0:02:37"]

1. e4 {[%clk 0:03:00]}  c5 {[%clk 0:02:58]} 2. Nf3 {[%clk 0:03:00]}  e6 {[%clk 0:02:59]} 3. Nc3 {[%clk 0:02:59]}  a6 {[%clk 0:02:58]} 4. g3 {[%clk 0:02:59]}  b5 {[%clk 0:02:57]} 5. Bg2 {[%clk 0:02:59]}  Bb7 {[%clk 0:02:57]} 6. d4 {[%clk 0:03:00]}  cxd4 {[%clk 0:02:56]} 7. Nxd4 {[%clk 0:03:00]}  Nf6 {[%clk 0:02:56]} 8. O-O {[%clk 0:02:56]}  b4 {[%clk 0:02:56]} 9. Na4 {[%clk 0:02:56]}  Bxe4 {[%clk 0:02:56]} 10. Bxe4 {[%clk 0:02:45]}  Nxe4 {[%clk 0:02:57]} 11. Re1 {[%clk 0:02:45]}  d5 {[%clk 0:02:56]} 12. c4 {[%clk 0:02:37]}  Nc5 {[%clk 0:02:56]} 13. Nxc5 {[%clk 0:01:52]}  Bxc5 {[%clk 0:02:54]} 14. Nb3 {[%clk 0:01:53]}  Be7 {[%clk 0:02:47]} 15. cxd5 {[%clk 0:01:42]}  Qxd5 {[%clk 0:02:44]} 16. Qxd5 {[%clk 0:01:34]}  exd5 {[%clk 0:02:45]} 17. Bf4 {[%clk 0:01:26]}  Nc6 {[%clk 0:02:39]} 18. Rac1 {[%clk 0:01:26]}  Rc8 {[%clk 0:02:37]} 19. Nd4 {[%clk 0:01:02]} 1-0


[Site "https://www.chess.com"]

[Event "Titled Tuesday Blitz December 13 Early 2022"]
[White "Hamley, Ryan"]
[Black "Lenderman, Aleksandr"]
[WhiteFideId "30959497"]
[BlackFideId "2021285"]
[WhiteElo "2606"]
[BlackElo "2607"]
[Result "0-1"]
[Round "02"]
[TimeControl "180+1"]
[Date "2022.12.13"]
[WhiteClock "0:00:03"]
[BlackClock "0:00:12"]

1. d4 {[%clk 0:02:55]}  e6 {[%clk 0:02:59]} 2. Nf3 {[%clk 0:02:55]}  b6 {[%clk 0:02:59]} 3. Bf4 {[%clk 0:02:55]}  Bb7 {[%clk 0:02:59]} 4. e3 {[%clk 0:02:56]}  Nf6 {[%clk 0:02:58]} 5. Bd3 {[%clk 0:02:56]}  Be7 {[%clk 0:02:58]} 6. Nbd2 {[%clk 0:02:55]}  Nh5 {[%clk 0:02:58]} 7. O-O {[%clk 0:02:38]}  Nxf4 {[%clk 0:02:57]} 8. exf4 {[%clk 0:02:39]}  O-O {[%clk 0:02:58]} 9. Re1 {[%clk 0:02:36]}  c5 {[%clk 0:02:58]} 10. c3 {[%clk 0:02:33]}  cxd4 {[%clk 0:02:58]} 11. Nxd4 {[%clk 0:02:30]}  Bf6 {[%clk 0:02:58]} 12. Ne4 {[%clk 0:02:28]}  Bxd4 {[%clk 0:02:57]} 13. cxd4 {[%clk 0:02:27]}  Nc6 {[%clk 0:02:55]} 14. d5 {[%clk 0:02:26]}  Nb4 {[%clk 0:02:51]} 15. dxe6 {[%clk 0:01:52]}  dxe6 {[%clk 0:02:52]} 16. Nd6 {[%clk 0:01:47]}  Bd5 {[%clk 0:02:42]} 17. Nc4 {[%clk 0:01:45]}  Rc8 {[%clk 0:02:31]} 18. Ne3 {[%clk 0:01:45]}  Bxa2 {[%clk 0:02:24]} 19. Ba6 {[%clk 0:01:11]}  Qxd1 {[%clk 0:02:18]} 20. Rexd1 {[%clk 0:01:11]}  Rc7 {[%clk 0:02:14]} 21. Rd4 {[%clk 0:00:39]}  Nxa6 {[%clk 0:02:10]} 22. Rxa2 {[%clk 0:00:39]}  Nb4 {[%clk 0:02:06]} 23. Rxb4 {[%clk 0:00:38]}  Rc1+ {[%clk 0:02:02]} 24. Nf1 {[%clk 0:00:38]}  Rd8 {[%clk 0:02:03]} 25. g3 {[%clk 0:00:26]}  Rdd1 {[%clk 0:02:01]} 26. Rxa7 {[%clk 0:00:27]}  Rxf1+ {[%clk 0:02:01]} 27. Kg2 {[%clk 0:00:27]}  Rg1+ {[%clk 0:01:57]} 28. Kf3 {[%clk 0:00:27]}  Rc8 {[%clk 0:01:43]} 29. Rxb6 {[%clk 0:00:27]}  g6 {[%clk 0:01:43]} 30. Rab7 {[%clk 0:00:26]}  Rc5 {[%clk 0:01:42]} 31. h4 {[%clk 0:00:25]}  h5 {[%clk 0:01:41]} 32. Rd6 {[%clk 0:00:24]}  Rb1 {[%clk 0:01:38]} 33. Rd8+ {[%clk 0:00:24]}  Kg7 {[%clk 0:01:38]} 34. Rdd7 {[%clk 0:00:25]}  Rf5 {[%clk 0:01:38]} 35. b4 {[%clk 0:00:24]}  Rb2 {[%clk 0:01:30]} 36. Ke3 {[%clk 0:00:23]}  e5 {[%clk 0:01:28]} 37. fxe5 {[%clk 0:00:20]}  Rfxf2 {[%clk 0:01:25]} 38. e6 {[%clk 0:00:19]}  Rbe2+ {[%clk 0:01:25]} 39. Kd4 {[%clk 0:00:20]}  Rxe6 {[%clk 0:01:26]} 40. b5 {[%clk 0:00:20]}  Rff6 {[%clk 0:01:11]} 41. Rbc7 {[%clk 0:00:19]}  Re1 {[%clk 0:01:09]} 42. Rc3 {[%clk 0:00:16]}  Rb1 {[%clk 0:00:55]} 43. Rd5 {[%clk 0:00:12]}  Rb6 {[%clk 0:00:40]} 44. Kc4 {[%clk 0:00:06]}  Rb7 {[%clk 0:00:40]} 45. Re3 {[%clk 0:00:05]}  Rc7+ {[%clk 0:00:38]} 46. Kd4 {[%clk 0:00:05]}  Rb4+ {[%clk 0:00:37]} 47. Kd3 {[%clk 0:00:03]}  Rb7 {[%clk 0:00:38]} 48. Ree5 {[%clk 0:00:03]}  Rb3+ {[%clk 0:00:38]} 49. Ke4 {[%clk 0:00:03]}  Rxg3 {[%clk 0:00:39]} 50. Rc5 {[%clk 0:00:03]}  Rg4+ {[%clk 0:00:38]} 51. Kd5 {[%clk 0:00:03]}  Rxh4 {[%clk 0:00:35]} 52. Kc6 {[%clk 0:00:04]}  Rb8 {[%clk 0:00:35]} 53. Kc7 {[%clk 0:00:05]}  Rf8 {[%clk 0:00:34]} 54. b6 {[%clk 0:00:05]}  Rb4 {[%clk 0:00:34]} 55. b7 {[%clk 0:00:05]}  h4 {[%clk 0:00:30]} 56. Rb5 {[%clk 0:00:06]}  Rc4+ {[%clk 0:00:23]} 57. Rec5 {[%clk 0:00:05]}  Rxc5+ {[%clk 0:00:19]} 58. Rxc5 {[%clk 0:00:06]}  f5 {[%clk 0:00:19]} 59. Rd5 {[%clk 0:00:06]}  h3 {[%clk 0:00:17]} 60. Rd3 {[%clk 0:00:04]}  h2 {[%clk 0:00:10]} 61. Rh3 {[%clk 0:00:03]}  f4 {[%clk 0:00:11]} 62. Rxh2 {[%clk 0:00:03]}  g5 {[%clk 0:00:12]} 63. Rg2 {[%clk 0:00:03]}  Kg6 {[%clk 0:00:11]} 64. Rd2 {[%clk 0:00:03]}  f3 {[%clk 0:00:11]} 65. Rd8 {[%clk 0:00:03]}  Rxd8 {[%clk 0:00:11]} 66. Kxd8 {[%clk 0:00:04]}  f2 {[%clk 0:00:11]} 67. b8=Q {[%clk 0:00:05]}  f1=Q {[%clk 0:00:12]} 68. Qd6+ {[%clk 0:00:03]}  Qf6+ {[%clk 0:00:12]} 0-1


[Site "https://www.chess.com"]

[Event "Titled Tuesday Blitz December 13 Early 2022"]
[White "Hirneise, Jens"]
[Black "Kuchava, Ana"]
[WhiteFideId "24614734"]
[BlackFideId "13605348"]
[WhiteElo "2345"]
[BlackElo "2001"]
[Result "1-0"]
[Round "02"]
[TimeControl "180+1"]
[Date "2022.12.14"]
[WhiteClock "0:00:13"]
[BlackClock "0:00:01"]

1. c4 {[%clk 0:03:00]}  e6 {[%clk 0:02:59]} 2. Nc3 {[%clk 0:03:01]}  d5 {[%clk 0:02:59]} 3. d4 {[%clk 0:03:00]}  Be7 {[%clk 0:02:59]} 4. Nf3 {[%clk 0:03:00]}  Nf6 {[%clk 0:02:59]} 5. cxd5 {[%clk 0:02:59]}  exd5 {[%clk 0:02:59]} 6. Bg5 {[%clk 0:02:58]}  c6 {[%clk 0:02:59]} 7. e3 {[%clk 0:02:58]}  Bf5 {[%clk 0:03:00]} 8. Bd3 {[%clk 0:02:49]}  Bxd3 {[%clk 0:02:58]} 9. Qxd3 {[%clk 0:02:50]}  O-O {[%clk 0:02:57]} 10. O-O {[%clk 0:02:48]}  h6 {[%clk 0:02:57]} 11. Bxf6 {[%clk 0:02:45]}  Bxf6 {[%clk 0:02:56]} 12. b4 {[%clk 0:02:45]}  a6 {[%clk 0:02:54]} 13. a4 {[%clk 0:02:45]}  Nd7 {[%clk 0:02:54]} 14. b5 {[%clk 0:02:40]}  axb5 {[%clk 0:02:55]} 15. axb5 {[%clk 0:02:40]}  Nb6 {[%clk 0:02:49]} 16. bxc6 {[%clk 0:02:39]}  bxc6 {[%clk 0:02:49]} 17. Rfb1 {[%clk 0:02:37]}  Nc4 {[%clk 0:02:47]} 18. Nd2 {[%clk 0:02:37]}  Nxd2 {[%clk 0:02:29]} 19. Qxd2 {[%clk 0:02:38]}  Qc7 {[%clk 0:02:19]} 20. Na4 {[%clk 0:02:35]}  Be7 {[%clk 0:02:13]} 21. g3 {[%clk 0:02:22]}  Rfb8 {[%clk 0:02:10]} 22. Nc3 {[%clk 0:02:19]}  Bd6 {[%clk 0:01:53]} 23. Rxa8 {[%clk 0:02:10]}  Rxa8 {[%clk 0:01:54]} 24. Qb2 {[%clk 0:02:11]}  Rb8 {[%clk 0:01:49]} 25. Qa2 {[%clk 0:01:38]}  Rxb1+ {[%clk 0:01:45]} 26. Qxb1 {[%clk 0:01:38]}  Qb8 {[%clk 0:01:40]} 27. Qc2 {[%clk 0:01:28]}  g6 {[%clk 0:01:14]} 28. Kg2 {[%clk 0:01:27]}  Kg7 {[%clk 0:01:13]} 29. h4 {[%clk 0:01:27]}  h5 {[%clk 0:01:12]} 30. Ne2 {[%clk 0:01:16]}  Qb5 {[%clk 0:01:04]} 31. Nc1 {[%clk 0:01:16]}  Bb4 {[%clk 0:00:34]} 32. Nd3 {[%clk 0:01:11]}  Bd6 {[%clk 0:00:33]} 33. Nb2 {[%clk 0:01:07]}  Ba3 {[%clk 0:00:28]} 34. Na4 {[%clk 0:01:06]}  Bd6 {[%clk 0:00:28]} 35. Nb2 {[%clk 0:00:52]}  Ba3 {[%clk 0:00:27]} 36. Nd1 {[%clk 0:00:52]}  Bd6 {[%clk 0:00:26]} 37. Qa2 {[%clk 0:00:39]}  Be7 {[%clk 0:00:21]} 38. Nc3 {[%clk 0:00:38]}  Qb6 {[%clk 0:00:19]} 39. Qc2 {[%clk 0:00:36]}  Bd6 {[%clk 0:00:18]} 40. Ne2 {[%clk 0:00:35]}  Qb5 {[%clk 0:00:18]} 41. Nc1 {[%clk 0:00:34]}  Ba3 {[%clk 0:00:15]} 42. Nb3 {[%clk 0:00:34]}  Bd6 {[%clk 0:00:15]} 43. Nd2 {[%clk 0:00:32]}  Ba3 {[%clk 0:00:15]} 44. e4 {[%clk 0:00:33]}  dxe4 {[%clk 0:00:14]} 45. Nxe4 {[%clk 0:00:33]}  Qd5 {[%clk 0:00:13]} 46. f3 {[%clk 0:00:31]}  Be7 {[%clk 0:00:13]} 47. Qc3 {[%clk 0:00:30]}  Bf6 {[%clk 0:00:11]} 48. Nxf6 {[%clk 0:00:29]}  Kxf6 {[%clk 0:00:11]} 49. Kf2 {[%clk 0:00:30]}  Kg7 {[%clk 0:00:12]} 50. Ke3 {[%clk 0:00:30]}  Qe6+ {[%clk 0:00:11]} 51. Kf2 {[%clk 0:00:30]}  Qa2+ {[%clk 0:00:11]} 52. Kg1 {[%clk 0:00:28]}  Qd5 {[%clk 0:00:11]} 53. Kg2 {[%clk 0:00:29]}  Kf6 {[%clk 0:00:11]} 54. Qe3 {[%clk 0:00:28]}  Kg7 {[%clk 0:00:11]} 55. Qf4 {[%clk 0:00:28]}  Qa2+ {[%clk 0:00:10]} 56. Kh3 {[%clk 0:00:28]}  Qe6+ {[%clk 0:00:11]} 57. g4 {[%clk 0:00:28]}  hxg4+ {[%clk 0:00:12]} 58. fxg4 {[%clk 0:00:29]}  Qb3+ {[%clk 0:00:11]} 59. Kg2 {[%clk 0:00:29]}  Qc2+ {[%clk 0:00:11]} 60. Kf1 {[%clk 0:00:27]}  Qd1+ {[%clk 0:00:11]} 61. Kf2 {[%clk 0:00:27]}  Qc2+ {[%clk 0:00:11]} 62. Kg3 {[%clk 0:00:24]}  Qd3+ {[%clk 0:00:11]} 63. Kg2 {[%clk 0:00:24]}  Qc2+ {[%clk 0:00:10]} 64. Qf2 {[%clk 0:00:22]}  Qe4+ {[%clk 0:00:10]} 65. Kh2 {[%clk 0:00:19]}  Qxg4 {[%clk 0:00:09]} 66. Qb2 {[%clk 0:00:14]}  Kh7 {[%clk 0:00:09]} 67. Qf2 {[%clk 0:00:12]}  Qe4 {[%clk 0:00:08]} 68. Qxf7+ {[%clk 0:00:12]}  Kh6 {[%clk 0:00:08]} 69. Qf6 {[%clk 0:00:12]}  Kh7 {[%clk 0:00:06]} 70. Kg3 {[%clk 0:00:12]}  Kh6 {[%clk 0:00:06]} 71. Qg5+ {[%clk 0:00:12]}  Kh7 {[%clk 0:00:05]} 72. Qc5 {[%clk 0:00:12]}  Qe3+ {[%clk 0:00:05]} 73. Kg4 {[%clk 0:00:12]}  Qe4+ {[%clk 0:00:05]} 74. Kg5 {[%clk 0:00:12]}  Qg2+ {[%clk 0:00:04]} 75. Kf6 {[%clk 0:00:12]}  Qf3+ {[%clk 0:00:04]} 76. Ke7 {[%clk 0:00:12]}  Qe4+ {[%clk 0:00:04]} 77. Kd7 {[%clk 0:00:12]}  Qxh4 {[%clk 0:00:04]} 78. Kxc6 {[%clk 0:00:12]}  Qg4 {[%clk 0:00:02]} 79. Qe7+ {[%clk 0:00:12]}  Kh6 {[%clk 0:00:02]} 80. d5 {[%clk 0:00:12]}  Qd1 {[%clk 0:00:01]} 81. Qf8+ {[%clk 0:00:12]}  Kg5 {[%clk 0:00:01]} 82. d6 {[%clk 0:00:13]}  Qc2+ {[%clk 0:00:01]} 83. Kd7 {[%clk 0:00:13]}  Qa4+ {[%clk 0:00:01]} 84. Ke7 {[%clk 0:00:13]}  Qe4+ {[%clk 0:00:02]} 85. Kd8 {[%clk 0:00:13]}  Qa8+ {[%clk 0:00:02]} 86. Ke7 {[%clk 0:00:13]}  Qb7+ {[%clk 0:00:02]} 87. d7 {[%clk 0:00:13]}  Qb4+ {[%clk 0:00:03]} 88. Ke8 {[%clk 0:00:14]}  Qb5 {[%clk 0:00:01]} 89. Qe7+ {[%clk 0:00:14]}  Kf5 {[%clk 0:00:01]} 90. Kf8 {[%clk 0:00:13]} 1-0


[Site "https://www.chess.com"]

[Event "Titled Tuesday Blitz December 13 Early 2022"]
[White "Ibarra Jerez, Jose Carlos"]
[Black "Mendez Fortes, Eduardo Jesus"]
[WhiteFideId "2226332"]
[BlackFideId "3502376"]
[WhiteElo "2638"]
[BlackElo "2307"]
[Result "1-0"]
[Round "02"]
[TimeControl "180+1"]
[Date "2022.12.13"]
[WhiteClock "0:00:07"]
[BlackClock "0:00:08"]

1. e4 {[%clk 0:03:00]}  e5 {[%clk 0:02:59]} 2. Nf3 {[%clk 0:02:58]}  Nc6 {[%clk 0:03:00]} 3. Bb5 {[%clk 0:02:58]}  Nf6 {[%clk 0:03:00]} 4. O-O {[%clk 0:02:57]}  Nxe4 {[%clk 0:03:00]} 5. d4 {[%clk 0:02:58]}  Nd6 {[%clk 0:03:01]} 6. dxe5 {[%clk 0:02:58]}  Nxb5 {[%clk 0:03:01]} 7. a4 {[%clk 0:02:59]}  Nbd4 {[%clk 0:03:02]} 8. Nxd4 {[%clk 0:02:59]}  d5 {[%clk 0:03:02]} 9. Nxc6 {[%clk 0:02:57]}  bxc6 {[%clk 0:03:03]} 10. Nd2 {[%clk 0:02:55]}  Qd7 {[%clk 0:03:00]} 11. Nb3 {[%clk 0:02:53]}  c5 {[%clk 0:02:48]} 12. f4 {[%clk 0:02:49]}  c4 {[%clk 0:02:46]} 13. Nd4 {[%clk 0:02:46]}  c5 {[%clk 0:02:46]} 14. Nb5 {[%clk 0:02:44]}  Bb7 {[%clk 0:02:37]} 15. f5 {[%clk 0:02:40]}  Qc6 {[%clk 0:02:12]} 16. e6 {[%clk 0:02:28]}  f6 {[%clk 0:02:10]} 17. Qh5+ {[%clk 0:02:22]}  Kd8 {[%clk 0:02:09]} 18. Bf4 {[%clk 0:02:14]}  a6 {[%clk 0:01:58]} 19. Nc7 {[%clk 0:02:13]}  d4 {[%clk 0:01:59]} 20. Rf3 {[%clk 0:01:58]}  Rc8 {[%clk 0:01:57]} 21. e7+ {[%clk 0:01:44]}  Bxe7 {[%clk 0:01:54]} 22. Ne6+ {[%clk 0:01:44]}  Kd7 {[%clk 0:01:54]} 23. Re1 {[%clk 0:01:39]}  Rce8 {[%clk 0:01:52]} 24. Qf7 {[%clk 0:01:35]}  Qd5 {[%clk 0:01:30]} 25. b3 {[%clk 0:01:14]}  c3 {[%clk 0:01:25]} 26. b4 {[%clk 0:00:51]}  Kc8 {[%clk 0:01:19]} 27. bxc5 {[%clk 0:00:48]}  Rhf8 {[%clk 0:00:48]} 28. Qh5 {[%clk 0:00:48]}  Bxc5 {[%clk 0:00:42]} 29. Rd1 {[%clk 0:00:30]}  d3+ {[%clk 0:00:35]} 30. Kh1 {[%clk 0:00:30]}  Rxe6 {[%clk 0:00:24]} 31. Qh4 {[%clk 0:00:20]}  Re4 {[%clk 0:00:20]} 32. Qg3 {[%clk 0:00:15]}  Rfe8 {[%clk 0:00:18]} 33. Rfxd3 {[%clk 0:00:14]}  Qxf5 {[%clk 0:00:16]} 34. Rxc3 {[%clk 0:00:11]}  g5 {[%clk 0:00:11]} 35. Bd6 {[%clk 0:00:09]}  Bc6 {[%clk 0:00:09]} 36. Rxc5 {[%clk 0:00:08]}  Kb7 {[%clk 0:00:09]} 37. Rxf5 {[%clk 0:00:07]}  Re2 {[%clk 0:00:06]} 38. Rg1 {[%clk 0:00:05]}  R8e3 {[%clk 0:00:05]} 39. Qg4 {[%clk 0:00:04]}  Bd7 {[%clk 0:00:04]} 40. Qc4 {[%clk 0:00:02]}  Bc6 {[%clk 0:00:03]} 41. Qb4+ {[%clk 0:00:03]}  Kc8 {[%clk 0:00:03]} 42. Qg4 {[%clk 0:00:03]}  Kd7 {[%clk 0:00:04]} 43. Rf2+ {[%clk 0:00:02]}  Kd8 {[%clk 0:00:04]} 44. Rxe2 {[%clk 0:00:03]}  Bd7 {[%clk 0:00:04]} 45. Rxe3 {[%clk 0:00:02]}  Bxg4 {[%clk 0:00:05]} 46. Be7+ {[%clk 0:00:03]}  Kd7 {[%clk 0:00:05]} 47. Bxf6 {[%clk 0:00:04]}  h6 {[%clk 0:00:06]} 48. Bg7 {[%clk 0:00:04]}  h5 {[%clk 0:00:06]} 49. Bh6 {[%clk 0:00:05]}  h4 {[%clk 0:00:06]} 50. Bxg5 {[%clk 0:00:05]}  h3 {[%clk 0:00:07]} 51. gxh3 {[%clk 0:00:05]}  Bf5 {[%clk 0:00:07]} 52. Rd1+ {[%clk 0:00:06]}  Kc6 {[%clk 0:00:07]} 53. Rc3+ {[%clk 0:00:06]}  Kb6 {[%clk 0:00:08]} 54. Bd8+ {[%clk 0:00:06]}  Kb7 {[%clk 0:00:08]} 55. Rb1+ {[%clk 0:00:07]}  Ka8 {[%clk 0:00:08]} 56. Bb6 {[%clk 0:00:06]}  Kb7 {[%clk 0:00:08]} 57. Kg1 {[%clk 0:00:07]}  a5 {[%clk 0:00:08]} 58. Rc7+ {[%clk 0:00:08]}  Kb8 {[%clk 0:00:08]} 59. Re1 {[%clk 0:00:07]}  Bc8 {[%clk 0:00:07]} 60. Re8 {[%clk 0:00:06]}  Ka8 {[%clk 0:00:08]} 61. Rexc8# {[%clk 0:00:07]} 1-0


[Site "https://www.chess.com"]

[Event "Titled Tuesday Blitz December 13 Early 2022"]
[White "Ingebretsen, Jens E"]
[Black "Kopylov, Alexander A."]
[WhiteFideId "1522965"]
[BlackFideId "4164857"]
[WhiteElo "2213"]
[BlackElo "2436"]
[Result "1/2-1/2"]
[Round "02"]
[TimeControl "180+1"]
[Date "2022.12.14"]
[WhiteClock "0:00:06"]
[BlackClock "0:01:13"]

1. c4 {[%clk 0:03:00]}  Nf6 {[%clk 0:02:59]} 2. Nf3 {[%clk 0:03:01]}  e6 {[%clk 0:02:59]} 3. Nc3 {[%clk 0:03:02]}  d5 {[%clk 0:03:00]} 4. e3 {[%clk 0:03:02]}  Be7 {[%clk 0:03:00]} 5. b3 {[%clk 0:03:03]}  O-O {[%clk 0:03:00]} 6. Bb2 {[%clk 0:03:04]}  b6 {[%clk 0:03:01]} 7. Be2 {[%clk 0:03:04]}  Bb7 {[%clk 0:03:01]} 8. O-O {[%clk 0:03:05]}  c5 {[%clk 0:03:01]} 9. d4 {[%clk 0:03:05]}  cxd4 {[%clk 0:03:02]} 10. Nxd4 {[%clk 0:03:04]}  Nc6 {[%clk 0:03:02]} 11. Rc1 {[%clk 0:03:01]}  dxc4 {[%clk 0:03:02]} 12. Nxc6 {[%clk 0:02:59]}  Bxc6 {[%clk 0:03:03]} 13. Bxc4 {[%clk 0:02:58]}  Qxd1 {[%clk 0:02:57]} 14. Rfxd1 {[%clk 0:02:58]}  Rfd8 {[%clk 0:02:57]} 15. Ne2 {[%clk 0:02:33]}  Rxd1+ {[%clk 0:02:54]} 16. Rxd1 {[%clk 0:02:34]}  Rd8 {[%clk 0:02:47]} 17. Rxd8+ {[%clk 0:02:32]}  Bxd8 {[%clk 0:02:48]} 18. Nd4 {[%clk 0:02:32]}  Be4 {[%clk 0:02:40]} 19. Nb5 {[%clk 0:02:23]}  a5 {[%clk 0:02:33]} 20. Nd6 {[%clk 0:02:20]}  Bb1 {[%clk 0:02:31]} 21. a4 {[%clk 0:02:16]}  Kf8 {[%clk 0:02:12]} 22. Bd4 {[%clk 0:02:09]}  Nd7 {[%clk 0:02:05]} 23. Bb5 {[%clk 0:02:02]}  Nc5 {[%clk 0:02:00]} 24. Bxc5 {[%clk 0:01:44]}  bxc5 {[%clk 0:02:01]} 25. Bc4 {[%clk 0:01:44]}  Ke7 {[%clk 0:01:56]} 26. Nb5 {[%clk 0:01:44]}  Kd7 {[%clk 0:01:47]} 27. Kf1 {[%clk 0:01:41]}  Be4 {[%clk 0:01:46]} 28. f3 {[%clk 0:01:40]}  Bc6 {[%clk 0:01:45]} 29. Ke2 {[%clk 0:01:38]}  f5 {[%clk 0:01:42]} 30. Nc3 {[%clk 0:01:26]}  g5 {[%clk 0:01:42]} 31. Kd3 {[%clk 0:01:21]}  h5 {[%clk 0:01:41]} 32. Bb5 {[%clk 0:01:21]}  Bc7 {[%clk 0:01:41]} 33. h3 {[%clk 0:01:20]}  Be5 {[%clk 0:01:41]} 34. Bxc6+ {[%clk 0:00:53]}  Kxc6 {[%clk 0:01:42]} 35. Nb5 {[%clk 0:00:54]}  Bb8 {[%clk 0:01:37]} 36. Kc4 {[%clk 0:00:54]}  Be5 {[%clk 0:01:37]} 37. Na7+ {[%clk 0:00:52]}  Kb7 {[%clk 0:01:38]} 38. Nb5 {[%clk 0:00:51]}  Kc6 {[%clk 0:01:38]} 39. Na3 {[%clk 0:00:50]}  Kb6 {[%clk 0:01:37]} 40. Nc2 {[%clk 0:00:50]}  Kc6 {[%clk 0:01:38]} 41. Ne1 {[%clk 0:00:51]}  Bd6 {[%clk 0:01:37]} 42. Nd3 {[%clk 0:00:51]}  Kb6 {[%clk 0:01:37]} 43. g4 {[%clk 0:00:47]}  h4 {[%clk 0:01:35]} 44. e4 {[%clk 0:00:44]}  fxe4 {[%clk 0:01:31]} 45. fxe4 {[%clk 0:00:45]}  Kc6 {[%clk 0:01:31]} 46. e5 {[%clk 0:00:41]}  Bf8 {[%clk 0:01:24]} 47. Nf2 {[%clk 0:00:41]}  Bg7 {[%clk 0:01:24]} 48. Ne4 {[%clk 0:00:42]}  Bxe5 {[%clk 0:01:24]} 49. Nxg5 {[%clk 0:00:42]}  Bb8 {[%clk 0:01:18]} 50. Nxe6 {[%clk 0:00:40]}  Bd6 {[%clk 0:01:18]} 51. g5 {[%clk 0:00:35]}  Kd7 {[%clk 0:01:17]} 52. Nxc5+ {[%clk 0:00:33]}  Ke7 {[%clk 0:01:17]} 53. Ne4 {[%clk 0:00:32]}  Bc7 {[%clk 0:01:16]} 54. Kd5 {[%clk 0:00:32]}  Kf7 {[%clk 0:01:16]} 55. Kc6 {[%clk 0:00:32]}  Bf4 {[%clk 0:01:16]} 56. Kd7 {[%clk 0:00:32]}  Kg6 {[%clk 0:01:16]} 57. Ke6 {[%clk 0:00:32]}  Be3 {[%clk 0:01:16]} 58. Ke5 {[%clk 0:00:29]}  Bc1 {[%clk 0:01:16]} 59. Kd4 {[%clk 0:00:26]}  Kf5 {[%clk 0:01:16]} 60. Nc5 {[%clk 0:00:17]}  Kxg5 {[%clk 0:01:15]} 61. Ke4 {[%clk 0:00:18]}  Bd2 {[%clk 0:01:11]} 62. Nd3 {[%clk 0:00:18]}  Bc3 {[%clk 0:01:11]} 63. Ne5 {[%clk 0:00:18]}  Kf6 {[%clk 0:01:11]} 64. Nf3 {[%clk 0:00:19]}  Kg6 {[%clk 0:01:11]} 65. Nxh4+ {[%clk 0:00:19]}  Kg5 {[%clk 0:01:11]} 66. Nf3+ {[%clk 0:00:20]}  Kh5 {[%clk 0:01:12]} 67. Kf4 {[%clk 0:00:17]}  Bb4 {[%clk 0:01:11]} 68. Kg3 {[%clk 0:00:17]}  Kg6 {[%clk 0:01:12]} 69. Kg4 {[%clk 0:00:18]}  Kf6 {[%clk 0:01:12]} 70. h4 {[%clk 0:00:19]}  Ke6 {[%clk 0:01:13]} 71. h5 {[%clk 0:00:20]}  Kd5 {[%clk 0:01:13]} 72. h6 {[%clk 0:00:19]}  Ke4 {[%clk 0:01:14]} 73. h7 {[%clk 0:00:19]}  Bc3 {[%clk 0:01:14]} 74. Ng5+ {[%clk 0:00:15]}  Kd3 {[%clk 0:01:15]} 75. Kf5 {[%clk 0:00:15]}  Kc2 {[%clk 0:01:15]} 76. Nf7 {[%clk 0:00:15]}  Bg7 {[%clk 0:01:14]} 77. Kg6 {[%clk 0:00:14]}  Bc3 {[%clk 0:01:14]} 78. Nh6 {[%clk 0:00:09]}  Kxb3 {[%clk 0:01:13]} 79. Ng4 {[%clk 0:00:09]}  Bh8 {[%clk 0:01:12]} 80. Kf7 {[%clk 0:00:09]}  Kxa4 {[%clk 0:01:13]} 81. Kg8 {[%clk 0:00:09]}  Bd4 {[%clk 0:01:13]} 82. Nh6 {[%clk 0:00:09]}  Kb3 {[%clk 0:01:13]} 83. Nf5 {[%clk 0:00:10]}  Bc3 {[%clk 0:01:08]} 84. Ng7 {[%clk 0:00:11]}  a4 {[%clk 0:01:09]} 85. h8=Q {[%clk 0:00:11]}  a3 {[%clk 0:01:10]} 86. Qh1 {[%clk 0:00:07]}  a2 {[%clk 0:01:11]} 87. Qb7+ {[%clk 0:00:08]}  Kc2 {[%clk 0:01:11]} 88. Qe4+ {[%clk 0:00:07]}  Kb2 {[%clk 0:01:11]} 89. Qe2+ {[%clk 0:00:07]}  Kb1 {[%clk 0:01:11]} 90. Qd3+ {[%clk 0:00:07]}  Kb2 {[%clk 0:01:11]} 91. Qb5+ {[%clk 0:00:07]}  Kc2 {[%clk 0:01:11]} 92. Qa4+ {[%clk 0:00:07]}  Kb2 {[%clk 0:01:12]} 93. Qb5+ {[%clk 0:00:05]}  Kc2 {[%clk 0:01:12]} 94. Qa4+ {[%clk 0:00:05]}  Kb2 {[%clk 0:01:13]} 95. Qd1 {[%clk 0:00:05]}  a1=Q {[%clk 0:01:13]} 96. Qxa1+ {[%clk 0:00:06]}  Kxa1 {[%clk 0:01:13]} 1/2-1/2


[Site "https://www.chess.com"]

[Event "Titled Tuesday Blitz December 13 Early 2022"]
[White "Itkis, Boris"]
[Black "Szpar, Milosz"]
[WhiteFideId "1209167"]
[BlackFideId "1184989"]
[WhiteElo "2216"]
[BlackElo "2455"]
[Result "0-1"]
[Round "02"]
[TimeControl "180+1"]
[Date "2022.12.14"]
[WhiteClock "0:00:04"]
[BlackClock "0:00:40"]

1. c4 {[%clk 0:03:00]}  e5 {[%clk 0:02:58]} 2. Nf3 {[%clk 0:03:00]}  Nc6 {[%clk 0:02:56]} 3. Nc3 {[%clk 0:03:01]}  Nf6 {[%clk 0:02:56]} 4. e4 {[%clk 0:03:02]}  Bb4 {[%clk 0:02:54]} 5. d3 {[%clk 0:03:01]}  d6 {[%clk 0:02:53]} 6. a3 {[%clk 0:03:01]}  Bc5 {[%clk 0:02:51]} 7. b4 {[%clk 0:03:00]}  Bb6 {[%clk 0:02:47]} 8. Na4 {[%clk 0:02:59]}  Bg4 {[%clk 0:02:46]} 9. Nxb6 {[%clk 0:02:51]}  axb6 {[%clk 0:02:46]} 10. Be2 {[%clk 0:02:52]}  Bxf3 {[%clk 0:02:40]} 11. Bxf3 {[%clk 0:02:51]}  Nd7 {[%clk 0:02:40]} 12. O-O {[%clk 0:02:39]}  Nf8 {[%clk 0:02:40]} 13. Bg4 {[%clk 0:02:35]}  Nd4 {[%clk 0:02:36]} 14. f4 {[%clk 0:02:34]}  exf4 {[%clk 0:02:36]} 15. Bxf4 {[%clk 0:02:33]}  Nfe6 {[%clk 0:02:36]} 16. Bxe6 {[%clk 0:02:33]}  Nxe6 {[%clk 0:02:32]} 17. Be3 {[%clk 0:02:32]}  O-O {[%clk 0:02:26]} 18. Qg4 {[%clk 0:02:07]}  c5 {[%clk 0:02:18]} 19. h4 {[%clk 0:01:59]}  b5 {[%clk 0:02:08]} 20. cxb5 {[%clk 0:01:44]}  cxb4 {[%clk 0:02:01]} 21. axb4 {[%clk 0:01:43]}  Rxa1 {[%clk 0:01:57]} 22. Rxa1 {[%clk 0:01:44]}  Qf6 {[%clk 0:01:56]} 23. Rf1 {[%clk 0:01:27]}  Qc3 {[%clk 0:01:54]} 24. h5 {[%clk 0:01:15]}  Qxd3 {[%clk 0:01:51]} 25. Rf3 {[%clk 0:01:15]}  Qxb5 {[%clk 0:01:24]} 26. h6 {[%clk 0:01:11]}  g6 {[%clk 0:01:24]} 27. Bd2 {[%clk 0:00:23]}  Rc8 {[%clk 0:01:03]} 28. Bc3 {[%clk 0:00:11]}  Qe2 {[%clk 0:01:02]} 29. Qg3 {[%clk 0:00:04]}  Qxe4 {[%clk 0:00:51]} 30. Qxd6 {[%clk 0:00:04]}  Rxc3 {[%clk 0:00:40]} 0-1


[Site "https://www.chess.com"]